Cogmind - Beta 14 @@@ ROGUE MODE // 2024.08.17 @ 12:20:18 Player: RavenousxxxDemon Result: Destroyed by S-10 Pest with Light Assault Rifle Performance ------------- Evolutions (2) 1000 Regions Visited (4) 800 Robots Destroyed (39) 195 Value Destroyed (1110) 1110 Prototype IDs (3) 60 Alien Tech Used (0) 0 Bonus (0) 0 TOTAL SCORE: 3165 Bonus ------- None Cogmind --------- Core Integrity 0/550 Matter 300/300 Energy 98/100 System Corruption 0% Temperature Cool (0) Movement Core (50) Location -8/Materials Parts ------- > --- POWER (2) -------- (None) > --- PROPULSION (3) --- (None) > --- UTILITY (3) ------ (None) > --- WEAPON (3) ------- (None) > --- INVENTORY (5) ---- Improved Heat Sink Improved Targeting Computer ECM Suite Hacking Suite Mining Laser Peak State ------------ > --- POWER ------------ Ion Engine Heavy Ion Engine > --- PROPULSION ------- Light Treads Light Treads > --- UTILITY ---------- Large Storage Unit Hardened Medium Armor Plating Shield Generator > --- WEAPON ----------- Shock Rifle Beam Rifle Advanced Beam Rifle > --- INVENTORY -------- Light Ion Engine Wheel Heat Sink ECM Suite Hardened Medium Armor Plating Hacking Suite Heavy Assault Rifle [Rating: 22] Favorites ----------- Power Light Ion Engine Engine Light Ion Engine Power Core Light Nuclear Core Propulsion Light Treads Treads Light Treads Leg Carbon-fiber Leg Wheel Wheel Flight Unit Flight Unit Utility Large Storage Unit Device Shield Generator Storage Large Storage Unit Protection Hardened Medium Armor Plating Weapon Assault Rifle Energy Gun Beam Rifle Energy Cannon Beam Cannon Ballistic Gun Assault Rifle Build | -11 -10 -9 -9 -8 ------- Run | Yrd Mat Mat Min Mat Slots Evolved 4 | . . 2 . 2 Power 1 | . . 1 . . Propulsion 1 | . . . . 1 Utility 1 | . . . . 1 Weapon 1 | . . 1 . . Parts Attached 38 | 6 7 11 . 14 Power 6 | 1 1 2 . 2 Engine 5 | 1 . 2 . 2 Core 1 | . 1 . . . Reactor . | . . . . . Propulsion 11 | 2 3 3 . 3 Treads 5 | 2 . 2 . 1 Leg 2 | . . . . 2 Wheel 3 | . 3 . . . Hover . | . . . . . Flight 1 | . . 1 . . Utility 11 | 1 2 2 . 6 Device 4 | . . 2 . 2 Storage 3 | 1 2 . . . Processor . | . . . . . Hackware . | . . . . . Protection 4 | . . . . 4 Artifact . | . . . . . Weapon 10 | 2 1 4 . 3 Energy Gun 3 | . . 1 . 2 Energy Cannon 1 | . . 1 . . Ballistic Gun 6 | 2 1 2 . 1 Ballistic Cannon . | . . . . . Launcher . | . . . . . Special Weapon . | . . . . . Impact Weapon . | . . . . . Slashing Weapon . | . . . . . Piercing Weapon . | . . . . . Special Melee Weapon . | . . . . . Unidentified Prototypes 1 | . . 1 . . Parts Lost 19 | . 1 3 . 15 Power 3 | . . 1 . 2 Propulsion 4 | . . 1 . 3 Utility 6 | . . . . 6 Weapon 6 | . 1 1 . 4 Highest Loss Streak 5 | . 1 2 . 5 To Critical Strikes . | . . . . . Average Slot Usage (%) 83 | . 89 84 100 79 Engine 12 | . 9 10 22 13 Core 1 | . 4 . . . Treads 16 | . 18 12 22 16 Wheel 3 | . 9 6 . . Device 6 | . . 9 11 7 Storage 12 | . 17 12 11 8 Protection 3 | . . . . 8 Energy Gun 9 | . . 4 11 16 Energy Cannon 3 | . . 10 11 2 Ballistic Gun 13 | . 28 16 11 4 Peak Build Rating 22 | 6 9 15 15 22 Average Rating 11 | 5 6 11 15 17 On Entrance 9 | . 6 9 15 15 Naked Turns 16 | . . . . 16 Heaviest Build 51 | 12 34 44 44 51 Greatest Support 63 | 40 40 43 43 63 Greatest Overweight (x) 9 | . 1 9 1 6 Average Overweight (x) . | . . . 1 . Largest Inventory Capacity 15 | 8 15 15 15 15 Average Capacity 12 | 7 9 15 15 14 Most Carried 9 | 6 8 9 8 8 Average Carried 6 | 5 6 6 8 5 Final Capacity 15 | 8 15 15 15 5 Final Carried 8 | 6 5 8 8 5 Class Distribution -------------------- 51% | Mutant 33% | Scavenger-Tank 7% | Gunner 5% | Tank Dominant Class ---------------- Mutant | -10/Materials Gunner | -9/Materials Scavenger-Tank | -9/Mines Scavenger-Tank | -8/Materials Resources | -11 -10 -9 -9 -8 ----------- Run | Yrd Mat Mat Min Mat Matter Collected 1001 | 172 375 277 5 172 Remotely . | . . . . . Salvage Created 1313 | . 430 424 . 459 Parts 94 | . 31 36 . 27 Haulers Intercepted . | . . . . . Recyclers Shooed . | . . . . . Parts Field Recycled . | . . . . . Retrieved Matter . | . . . . . Parts Self-Destructed . | . . . . . Prevented . | . . . . . Kills | -11 -10 -9 -9 -8 ------- Run | Yrd Mat Mat Min Mat Combat Hostiles Destroyed 30 | . 9 10 . 11 Guns 23 | . 9 5 . 9 Cannons 6 | . . 4 . 2 Classes Destroyed 9 | . 2 4 . 3 Worker 1 | . . 1 . . Builder 1 | . . 1 . . Tunneler 1 | . . . . 1 Operator 1 | . . . . 1 Watcher 5 | . 2 2 . 1 Swarmer 7 | . . 3 . 4 Grunt 18 | . 9 5 . 4 Sentry 4 | . . 2 . 2 Hunter 1 | . . . . 1 Best Kill Streak 8 | . 3 8 . 5 Combat Bots Only 7 | . 2 7 . 5 Max Kills in Single Turn 2 | . 1 2 . 1 Gunslinging . | . . . . . Exploded . | . . . . . Melee . | . . . . . Uniques/NPCs Destroyed . | . . . . . Combat | -11 -10 -9 -9 -8 -------- Run | Yrd Mat Mat Min Mat Hostile Shots Fired 393 | . 57 68 . 268 Missed 107 | . 12 22 . 73 Damage Taken 3643 | . 549 536 . 2558 Core 825 | . 89 186 . 550 Absorbed by Shields 153 | . . 15 . 138 Core Remaining (%) 72 | 100 64 . 53 . Volleys Fired 104 | . 36 30 . 38 Largest 3 | . 2 3 . 3 Hottest 167 | . 40 139 . 167 Shots Fired 258 | . 72 83 . 103 Gun 217 | . 72 55 . 90 Cannon 41 | . . 28 . 13 Launcher . | . . . . . Special . | . . . . . Kinetic 140 | . 72 49 . 19 Thermal 105 | . . 34 . 71 Explosive . | . . . . . Electromagnetic 13 | . . . . 13 Robot Hit Streak 9 | . 7 6 . 9 Robot Miss Streak 4 | . 3 4 . 4 Penetration Max . | . . . . . Secondary Targets 1 | . 1 . . . Max Gunslinging Chain 1 | . 1 . . . Shots Hit Robots 138 | . 41 40 . 57 Core Hits 61 | . 23 17 . 21 Critical Kills 1 | . . 1 . . Critical Parts Destroyed 1 | . 1 . . . Critical Strikes 3 | . 1 1 . 1 Burn 1 | . . . . 1 Meltdown 1 | . . 1 . . Destroy 1 | . 1 . . . Melee Attacks . | . . . . . Impact . | . . . . . Slashing . | . . . . . Piercing . | . . . . . Sneak Attacks . | . . . . . Combat Hostiles . | . . . . . Follow-up Attacks . | . . . . . Damage Inflicted 2195 | . 524 644 . 1027 Guns 1760 | . 524 395 . 841 Cannons 387 | . . 249 . 138 Explosions 47 | . . . . 47 Melee . | . . . . . Ramming 1 | . . . . 1 Kinetic 970 | . 524 336 . 110 Thermal 1093 | . . 308 . 785 Explosive . | . . . . . Electromagnetic 131 | . . . . 131 Impact . | . . . . . Slashing . | . . . . . Piercing . | . . . . . Highest Corruption 2 | . 2 1 1 . Average Corruption 1 | . 2 1 1 . Corruption Purged . | . . . . . Corruption Blocked . | . . . . . Effects 11 | . 8 3 . . Message Errors 1 | . 1 . . . Matter Fused 3 | . 2 1 . . Energy Discharges 2 | . 1 1 . . Data Loss (minor) 4 | . 4 . . . Misfires 1 | . . 1 . . Overload Shots . | . . . . . Overflow Damage . | . . . . . Projectiles . | . . . . . Explosions . | . . . . . Melee . | . . . . . Knockbacks . | . . . . . Impact . | . . . . . Kinetic . | . . . . . Secondary . | . . . . . Self-Inflicted Damage . | . . . . . Shots . | . . . . . Rammed . | . . . . . Targets Rammed 1 | . . . . 1 Kicked . | . . . . . Crushed 1 | . . . . 1 Highest Temperature 575 | . 21 430 . 575 Average Temperature 148 | . 4 91 . 182 Received Heat Transfer 1151 | . 309 221 . 621 Effects 14 | . . 2 . 12 Shutdowns 5 | . . . . 5 Energy Bleed 2 | . . . . 2 Matter Decay 1 | . . 1 . . Short Circuit 1 | . . . . 1 Damage (minor) 2 | . . 1 . 1 Damage (major) 2 | . . . . 2 Damage (core) 1 | . . . . 1 Siege Activations . | . . . . . Robots Corrupted . | . . . . . Combat Hostiles . | . . . . . Parts Fried . | . . . . . Impact Corruptions . | . . . . . Robots Melted 1 | . . 1 . . Combat Hostiles 1 | . . 1 . . Parts Melted 6 | . . 3 . 3 Heat Transferred 2418 | . . 666 . 1752 Parts Sabotaged . | . . . . . Parts Stolen . | . . . . . Parts Stripped . | . . . . . Power Chain Reactions 1 | . . . . 1 Alert | -11 -10 -9 -9 -8 ------- Run | Yrd Mat Mat Min Mat Peak Influence 279 | . 197 279 49 187 Initial 53 | . . 53 49 18 Average 72 | . 79 176 49 59 Maximum Alert Level 1 | . . 1 . . Low Security (%) 92 | 100 100 53 100 100 Level 1 7 | . . 46 . . Level 2 . | . . . . . Level 3 . | . . . . . Level 4 . | . . . . . Level 5 . | . . . . . High Security . | . . . . . Max Security . | . . . . . Squads Dispatched 11 | . 5 2 . 4 Investigation 4 | . 2 2 . . Extermination . | . . . . . Reinforcement 4 | . 3 . . 1 Assault . | . . . . . Garrison 3 | . . . . 3 Intercept . | . . . . . Searches Triggered . | . . . . . Construction Impeded . | . . . . . Haulers Reinforced . | . . . . . Active Scanning Responses . | . . . . . Cargo Convoy Interrupts . | . . . . . Stealth | -11 -10 -9 -9 -8 --------- Run | Yrd Mat Mat Min Mat Distress Signals 3 | . 1 2 . . Communications Jammed . | . . . . . Distress Signals . | . . . . . Times Spotted 62 | . 20 14 . 28 Peak Tracking Total 7 | . 4 5 . 7 Tactical Retreats 6 | . 3 . . 3 Traps | -11 -10 -9 -9 -8 ------- Run | Yrd Mat Mat Min Mat Traps Triggered 5 | . 4 1 . . Indirectly . | . . . . . Trap Hack Attempts . | . . . . . Triggered . | . . . . . Disarmed . | . . . . . Reprogrammed . | . . . . . Reused . | . . . . . Traps Extracted . | . . . . . Installed . | . . . . . Triggered . | . . . . . Machines | -11 -10 -9 -9 -8 ---------- Run | Yrd Mat Mat Min Mat Machines Disabled 1 | . . . . 1 Max in Single Turn 1 | . . . . 1 Machines Repaired . | . . . . . Machines Dismantled . | . . . . . Machines Sabotaged . | . . . . . Overloaded Fab Kills . | . . . . . Hacking | -11 -10 -9 -9 -8 --------- Run | Yrd Mat Mat Min Mat Machines Accessed 11 | . 5 2 . 4 Terminals 7 | . 2 2 . 3 Fabricators . | . . . . . Repair Stations 1 | . 1 . . . Recycling Units 3 | . 2 . . 1 Scanalyzers . | . . . . . Garrison Access . | . . . . . Total Hacks 38 | . 18 10 . 10 Successful 19 | . 7 5 . 7 Failed 17 | . 11 3 . 3 Catastrophic 4 | . 2 1 . 1 Database Lockouts 2 | . . 2 . . Manual . | . . . . . Terminals 26 | . 9 10 . 7 Fabricators . | . . . . . Repair Stations 2 | . 2 . . . Recycling Units 10 | . 7 . . 3 Scanalyzers . | . . . . . Garrison Access . | . . . . . Terminal Hacks 13 | . 3 5 . 5 Record 5 | . . 4 . 1 Prototype ID Bank 1 | . . 1 . . Branch Access Points 1 | . . . . 1 Emergency Access Points 1 | . . . . 1 Alert Level 2 | . 1 . . 1 Hauler Manifests 2 | . 1 . . 1 Zone Layout 1 | . 1 . . . Fabricator Hacks . | . . . . . Repair Station Hacks . | . . . . . Recycling Unit Hacks 6 | . 4 . . 2 Recycle Component 1 | . 1 . . . Process 3 | . 2 . . 1 Retrieve Matter 2 | . 1 . . 1 Scanalyzer . | . . . . . Garrison Access Hacks . | . . . . . Unauthorized Hacks . | . . . . . Terminals . | . . . . . Fabricators . | . . . . . Repair Stations . | . . . . . Recycling Units . | . . . . . Scanalyzers . | . . . . . Garrison Access . | . . . . . Data Cores Recovered . | . . . . . Used . | . . . . . Hacking Detections 9 | . 5 2 . 2 Full Trace Events 4 | . 3 1 . . Feedback Events 1 | . . 1 . . Corruption 1 | . . 1 . . Feedback Blocked . | . . . . . Robot Schematics Acquired . | . . . . . Robots Built . | . . . . . Authchips . | . . . . . Time . | . . . . . Total Robot Build Rating . | . . . . . Part Schematics Acquired . | . . . . . Parts Built . | . . . . . Authchips . | . . . . . Time . | . . . . . Total Part Build Rating . | . . . . . Parts Repaired . | . . . . . Time . | . . . . . Parts Recycled 1 | . 1 . . . Recycled Matter 439 | . 439 . . . Retrieved Matter 265 | . 265 . . . Retrieved Components . | . . . . . Parts Scanalyzed . | . . . . . Part Schematics Acquired . | . . . . . Parts Damaged . | . . . . . Bothacking | -11 -10 -9 -9 -8 ------------ Run | Yrd Mat Mat Min Mat Used RIF Installer . | . . . . . Robots Hacked . | . . . . . Non-combat . | . . . . . Combat . | . . . . . Robot Hacks Applied . | . . . . . Relay Couplers Released . | . . . . . Fabnet Peak Effective % . | . . . . . Robots Rewired . | . . . . . Allies Hacked . | . . . . . Hacks Repelled . | . . . . . Allies | -11 -10 -9 -9 -8 -------- Run | Yrd Mat Mat Min Mat Total Allies . | . . . . . Largest Group . | . . . . . Highest-Rated Group . | . . . . . Highest-Rated Ally . | . . . . . Total Orders . | . . . . . Ally Attacks . | . . . . . Total Damage . | . . . . . Kills . | . . . . . Allies Corrupted . | . . . . . Allies Melted . | . . . . . Intel | -11 -10 -9 -9 -8 ------- Run | Yrd Mat Mat Min Mat Robot Analysis Total . | . . . . . Derelict Logs Recovered 1 | . . . 1 . Drone Launches . | . . . . . Drone Recoveries . | . . . . . Exploration | -11 -10 -9 -9 -8 ------------- Run | Yrd Mat Mat Min Mat Turns Passed 3253 | 621 693 555 104 1280 Spaces Moved 1169 | 101 381 197 44 446 Core 50 | 13 . . . 37 Treads 797 | 88 195 112 44 358 Legs 51 | . . . . 51 Wheels 270 | . 186 84 . . Hover . | . . . . . Flight 1 | . . 1 . . Fastest Speed 50 | 50 80 105 240 50 Average Speed 172 | 145 130 167 240 210 Slowest Speed 765 | 160 160 765 240 350 Overloaded Moves . | . . . . . Propulsion Burnouts . | . . . . . Robots Hopped . | . . . . . Cave-ins Triggered . | . . . . . Exploration Rate (%) 26 | 13 56 15 16 31 Regions Visited 4 Branch Regions 1 Pre-discovered Areas . | . . . . . Known Exits Taken . | . . . . . Unknown Exits Taken 4 | 1 1 1 1 . Scrap Searched 1 | . . . 1 . Spaces Dug . | . . . . . Terrain Destroyed . | . . . . . Melee . | . . . . . Projectile . | . . . . . AOE . | . . . . . Terrain Rammed . | . . . . . Walls Destroyed . | . . . . . Machines Disabled . | . . . . . Actions | -11 -10 -9 -9 -8 --------- Run | Yrd Mat Mat Min Mat Total 2193 | 575 506 360 43 709 Wait 818 | 457 73 104 . 184 Move 1165 | 100 380 196 43 446 Hop . | . . . . . Pick Up 44 | 12 5 13 . 14 Fast Attach . | . . . . . Attach 33 | 6 7 9 . 11 Detach 4 | . 2 1 . 1 Swap 5 | . . 2 . 3 Drop 19 | . 3 5 . 11 Fire 104 | . 36 30 . 38 Melee . | . . . . . Ram . | . . . . . Kick . | . . . . . Crush 1 | . . . . 1 Escape Stasis . | . . . . . Rewire . | . . . . . Trap . | . . . . . Miscellaneous . | . . . . . Route ------- -11/Scrapyard -10/Materials (discovered 3 exits: *Mat x2 / [*Min]) -9/Materials -9/Mines -8/Materials History --------- Turn | Location | Event 31 | -11/Scrapyard | Discovered new exit (range 16) 622 | -11/Scrapyard | Entered Materials 623 | -10/Materials | Build established: Mutant 887 | -10/Materials | Discovered new exit (range 5) 909 | -10/Materials | Discovered new exit (range 14) 1033 | -10/Materials | Discovered new exit (range 17) 1315 | -10/Materials | Entered another Materials area 1315 | -9/Materials | Evolved 2 slots: Power x1, Weapon x1 1395 | -9/Materials | Central database locked down 1395 | -9/Materials | Central database locked down 1490 | -9/Materials | Destroyed 7 combat bots 1503 | -9/Materials | Met 8R-AWN 1585 | -9/Materials | Discovered new exit (range 16) 1870 | -9/Materials | Entered Mines 1873 | -9/Mines | Followed 8R-AWN into the Mines 1909 | -9/Mines | Discovered new exit (range 8) 1916 | -9/Mines | Learned Materials machine intel 1929 | -9/Mines | Assembled infested the area 1945 | -9/Mines | A weapon hastily lodged in a ceiling crevice suddenly fell to the ground 1974 | -9/Mines | Entered Materials 1974 | -8/Materials | Evolved 2 slots: Propulsion x1, Utility x1 1975 | -8/Materials | Loaded intel: 65 machine locations 2126 | -8/Materials | Build established: Scavenger-Tank 2930 | -8/Materials | Garrison activated, responded to threat 3032 | -8/Materials | Lost 4 parts (2n1u1w) 3206 | -8/Materials | Core integrity fell below 50% 3221 | -8/Materials | Lost 5 parts (1n2u2w) 3233 | -8/Materials | Core integrity fell below 20% 3254 | -8/Materials | Build established: Mutant 3254 | -8/Materials | Destroyed by S-10 Pest with Light Assault Rifle Last Messages --------------- 03231_ K-01 Serf collects debris. 03231_ U-05 Engineer lays Concrete. 03232_ K-01 Serf collects debris. 03232_ U-05 Engineer builds a Wall. 03232_ U-05 Engineer lays Concrete. 03234_ K-01 Serf collects debris. 03234_ U-05 Engineer lays Concrete. 03236_ K-01 Serf collects debris. 03236_ U-05 Engineer lays Concrete. 03238_ Lrg. Storage Unit destroyed. 03238_ U-05 Engineer lays Concrete. 03239_ K-01 Serf cleans the Nuclear Reactor. 03239_ U-05 Engineer builds a Wall. 03240_ U-05 Engineer lays Concrete. 03242_ K-01 Serf collects debris. 03242_ U-05 Engineer lays Concrete. 03242_ U-05 Engineer builds a Wall. 03243_ U-05 Engineer lays Concrete. 03246_ K-01 Serf cleans the Nuclear Reactor. Map ----- +----------------------------------------------------+ | ????????????????????????"""""??????????????????? | | ?????????????""????????????????????????????????? | | ?????????????T"????????????????????????????????? | | ?????????????""????????????????????????????????? | | ???????????????????????????????????????????????? | | ??????#????????????????????????????????????????? | | ????? ????????????????????????????????????????? | | ????"" ????????????????????????????????????????? | | ????T ????????????????????????????????????????? | | ????? ????????????????????????????????????????? | | ????? ????????????????????????????????????????? | | ?????# #???????????????????????????????????????? | | ##???# #???????????????????????????????????????? | | ###?# #???????????????????????????????????????? | | ###### #####???????????????????????????????????? | | #?????"""???????????????????????????? | | #?????"""???????????????????????????? | | """ +?????"""???????????????????????????? | | """ #???????????????????????????????????? | | """ #?????"""???????????????????????????? | | #?????"""???????????????????????????? | | ] #?????"""???????????????????????????? | | " """ #?????????????????####??????????????? | | " """ ##############+## !#??????????????? | | " """ ss w ! #??????????????? | | r @ T +??????????????? | | ########### #??????????????? | | " """ #??????????????#??????????????? | | " """ #?????????????????????????????? | | " """ #?"""?"""?????????????????????? | | +?"""?"""?????????????????????? | | #?"""?"""?????????????????????? | | #?????????????????????????????? | | #?????????????????????????????? | | ###############+##??????????????????????"""""??? | | ????????????????????????????????????????"""""??? | | ????????????????????????????????????????"""""??? | | ???????????????????????????????????????????????? | | ?"""????????????????????????????????????"""""??? | | ?"""????????"""?"""?????????????????????"""""??? | | ?"""????????"""?"""?????????"S??????????"""""??? | | ????????????"""?"""?????????"""????????????????? | | ?????????????????????????????""????????????????? | | ???"""?????????????????????????????????????????? | | ???"R"?????????????????????????????????????????? | | ???"?"?????????????????????????????????????????? | | ???????????????????????????????????????????????? | | ???????????????????????????????????????????????? | | ?"""???????????????????????????????????????????? | | ?"""????????????????????"""?"""????????????????? | +----------------------------------------------------+ Best States ------------- Heat Dissipation 45 Energy Generation 19 Energy Capacity 430 Matter Stores 300 Matter Capacity 300 Sight Range 16 Terrain Scan Density 10 Armor Coverage 225 Evasion (%) 50 Recoil Reduction 3 Item Schematics ----------------- None Robot Schematics ------------------ None Fabricated ------------ Nothing Alien Tech Used ----------------- None Achievements -------------- Novice Programmer Challenges ------------ None Game ------ Seed HackingAlloySubcomponent Manual? 0 Play Time 00:36:00 Cumulative 7.8 hours Start 2024.08.17 @ 11:43:33 End 2024.08.17 @ 12:20:18 Sessions 1 Manual Loads 0 Difficulty Rogue Special Mode None Game No. 20 Rogue 20 Adventurer 0 Explorer 0 Win Type - Total 0 Types 0/0/0/0/0/0/0/0/0 Lore% 1 Gallery% 11 Achievement% 12 Wizard Run 0 Options --------- Layout 1 ASCII 0 Keyboard 0 Movement Mouse Keybinds 0 Fullscreen 1 Font 24/Smallcaps Map View 50x35 Zoom Use 0% Tactical HUD 1 Map Filters NONE Filters NONE Steam 1 RUN: ecb0fd1d-cd89-40aa-a671-9f92338e119a